fUSD/lending_fUSD_20240628
["ID","MTS","AMOUNT","RATE_DAILY","PERIOD"]
[330524470,1719558704001,-4074.54,0.00019726,2]
[330524471,1719558704010,-4246.42,0.00019726,2]
[330524472,1719558704020,-939.85,0.00019726,2]
[330524473,1719558704029,-500.0,0.00019726,2]
[330524474,1719558704039,-500.0,0.00019726,2]
[330524475,1719558704048,-2149.46,0.00019726,2]
[330524476,1719558704057,-753.24,0.00019726,2]
[330524477,1719558704067,-3942.97,0.00019726,2]
[330524478,1719558704077,-500.0,0.00019726,2]
[330524479,1719558704096,-500.0,0.00019726,2]
[330524480,1719558704107,-500.0,0.00019726,2]
[330524481,1719558704116,-3207.38,0.00019726,2]
[330524482,1719558704125,-500.0,0.00019726,2]
[330524483,1719558704135,-933.87,0.00019726,2]
[330524484,1719558704147,-500.0,0.00019726,2]
[330524485,1719558704156,-1223.64,0.00019726,2]
[330524486,1719558704166,-1111.0,0.00019726,2]
[330524487,1719558704176,-657.09,0.00019726,2]
[330524488,1719558704187,-500.0,0.00019726,2]
[330524489,1719558704196,-3654.55,0.00019726,2]
[330524490,1719558704206,-1410.72,0.00019726,2]
[330524491,1719558704215,-2279.59,0.00019726,2]
[330524492,1719558704224,-516.45468667,0.00019726,2]
[330524493,1719558704234,-500.0,0.00019726,2]
[330524494,1719558704243,-664.58,0.00019726,2]
[330524495,1719558704252,-1139.96,0.00019726,2]
[330524496,1719558704262,-2393.99,0.00019726,2]
[330524497,1719558704271,-2137.53,0.00019726,2]
[330524498,1719558704282,-500.0,0.00019726,2]
[330524499,1719558704292,-240.42903844,0.00019726,2]
[330524500,1719558704301,-642.75,0.00019726,2]
[330524501,1719558704311,-1353.36,0.00019726,2]
[330524502,1719558704320,-500.0,0.00019726,2]
[330524503,1719558704330,-1653.07,0.00019726,2]
[330524504,1719558704340,-3566.37,0.00019726,2]
[330524505,1719558704349,-500.0,0.00019726,2]
[330524506,1719558704358,-1624.98,0.00019726,2]
[330524507,1719558704368,-2052.93,0.00019726,2]
[330524508,1719558704376,-1900.8,0.00019726,2]
[330524509,1719558704385,-1582.92,0.00019726,2]
[330524510,1719558704396,-2841.37,0.00019726,2]
[330524511,1719558704405,-500.0,0.00019726,2]
[330524512,1719558704414,-3091.06,0.00019726,2]
[330524513,1719558704423,-10674.02,0.00019726,2]
[330524514,1719558704433,-1314.15,0.00019726,2]
[330524515,1719558704443,-500.0,0.00019726,2]
[330524516,1719558704452,-500.0,0.00019726,2]
[330524517,1719558704462,-500.0,0.00019726,2]
[330524518,1719558704471,-1430.61,0.00019726,2]
[330524519,1719558704482,-1049.59,0.00019726,2]
[330524520,1719558704491,-500.0,0.00019726,2]
[330524521,1719558704501,-1837.31,0.00019726,2]
[330524522,1719558704511,-520.64,0.00019726,2]
[330524523,1719558704520,-5415.95,0.00019726,2]
[330524524,1719558704530,-500.0,0.00019726,2]
[330524525,1719558704540,-3021.99,0.00019726,2]
[330524526,1719558704551,-1765.61,0.00019726,2]
[330524527,1719558704561,-604.02,0.00019726,2]
[330524528,1719558704571,-500.0,0.00019726,2]
[330524529,1719558704580,-500.0,0.00019726,2]
[330524530,1719558704589,-956.48,0.00019726,2]
[330524531,1719558704602,-3522.3,0.00019726,2]
[330524532,1719558704612,-1331.89,0.00019726,2]
[330524533,1719558704622,-500.0,0.00019726,2]
[330524534,1719558704631,-500.0,0.00019726,2]
[330524535,1719558704641,-866.52,0.00019726,2]
[330524536,1719558704651,-1300.16,0.00019726,2]
[330524537,1719558704660,-745.7,0.00019726,2]
[330524538,1719558704670,-500.0,0.00019726,2]
[330524539,1719558704680,-469.16731386,0.00019726,2]
[330524540,1719558704689,-500.0,0.00019726,2]
[330524541,1719558704698,-500.0,0.00019726,2]
[330524542,1719558704708,-2212.34,0.00019726,2]
[330524543,1719558704717,-500.0,0.00019726,2]
[330524544,1719558704726,-500.0,0.00019726,2]
[330524545,1719558704735,-1071.7,0.00019726,2]
[330524546,1719558704744,-500.0,0.00019726,2]
[330524547,1719558704754,-500.0,0.00019726,2]
[330524548,1719558704763,-500.0,0.00019726,2]
[330524549,1719558704771,-747.3,0.00019726,2]
[330524550,1719558704780,-500.0,0.00019726,2]
[330524551,1719558704790,-500.0,0.00019726,2]
[330524552,1719558704799,-2105.34,0.00019726,2]
[330524553,1719558704808,-845.42,0.00019726,2]
[330524554,1719558704817,-500.0,0.00019726,2]
[330524555,1719558704826,-2493.7,0.00019726,2]
[330524556,1719558704835,-584.92,0.00019726,2]
[330524557,1719558704844,-500.0,0.00019726,2]
[330524558,1719558704853,-657.89,0.00019726,2]
[330524559,1719558704862,-5013.76,0.00019726,2]
[330524560,1719558704872,-500.0,0.00019726,2]
[330524561,1719558704881,-500.0,0.00019726,2]
[330524562,1719558704890,-500.0,0.00019726,2]
[330524563,1719558704899,-500.0,0.00019726,2]
[330524564,1719558704908,-2163.32,0.00019726,2]
[330524565,1719558704918,-1999.05,0.00019726,2]
[330524566,1719558704929,-500.0,0.00019726,2]
[330524567,1719558704940,-3653.82,0.00019726,2]
[330524568,1719558704951,-3137.41,0.00019726,2]
[330524569,1719558704960,-500.0,0.00019726,2]
[330524570,1719558704970,-3665.13,0.00019726,2]
[330524571,1719558704980,-500.0,0.00019726,2]
[330524572,1719558704990,-500.0,0.00019726,2]
[330524573,1719558705000,-500.0,0.00019726,2]
[330524574,1719558705009,-1851.84,0.00019726,2]
[330524575,1719558705019,-500.0,0.00019726,2]
[330524576,1719558705028,-602.51,0.00019726,2]
[330524577,1719558705038,-500.0,0.00019726,2]
[330524578,1719558705048,-384.02486186,0.00019726,2]
[330524579,1719558705057,-1695.79,0.00019726,2]
[330524580,1719558705067,-500.0,0.00019726,2]
[330524581,1719558705077,-500.0,0.00019726,2]
[330524582,1719558705090,-500.0,0.00019726,2]
[330524583,1719558705099,-500.0,0.00019726,2]
[330524584,1719558705109,-3145.98,0.00019726,2]
[330524585,1719558705119,-1101.32,0.00019726,2]
[330524586,1719558705130,-200.0,0.00019726,2]
[330524587,1719558705141,-755.9,0.00019726,2]
[330524588,1719558705151,-500.0,0.00019726,2]
[330524589,1719558705166,-914.87,0.00019726,2]
[330524590,1719558705176,-1796.39,0.00019726,2]
[330524591,1719558705186,-5431.77,0.00019726,2]
[330524592,1719558705195,-591.28,0.00019726,2]
[330524593,1719558705205,-2569.56,0.00019726,2]
[330524594,1719558705215,-554.09,0.00019726,2]
[330524595,1719558705224,-5512.98,0.00019726,2]
[330524596,1719558705234,-500.0,0.00019726,2]
[330524597,1719558705244,-500.0,0.00019726,2]
[330524598,1719558705253,-659.49,0.00019726,2]
[330524599,1719558705264,-500.0,0.00019726,2]
[330524600,1719558705273,-500.0,0.00019726,2]
[330524601,1719558705283,-536.97,0.00019726,2]
[330524602,1719558705293,-3385.67,0.00019726,2]
[330524603,1719558705302,-560.95,0.00019726,2]
[330524604,1719558705312,-566.3,0.00019726,2]
[330524605,1719558705322,-500.0,0.00019726,2]
[330524606,1719558705332,-512.27,0.00019726,2]
[330524607,1719558705342,-500.0,0.00019726,2]
[330524608,1719558705351,-3466.2,0.00019726,2]
[330524609,1719558705361,-2091.6,0.00019726,2]
[330524610,1719558705371,-500.0,0.00019726,2]
[330524611,1719558705381,-5009.72,0.00019726,2]
[330524612,1719558705393,-3615.19,0.00019726,2]
[330524613,1719558705403,-500.0,0.00019726,2]
[330524614,1719558705413,-500.0,0.00019726,2]
[330524615,1719558705422,-1795.81,0.00019726,2]
[330524616,1719558705431,-1164.72,0.00019726,2]
[330524617,1719558705441,-1071.39,0.00019726,2]
[330524618,1719558705452,-715.51,0.00019726,2]
[330524619,1719558705461,-500.0,0.00019726,2]
[330524620,1719558705471,-555.34,0.00019726,2]
[330524621,1719558705481,-1212.98,0.00019726,2]
[330524622,1719558705491,-630.86375023,0.00019726,2]
[330524623,1719558705501,-1681.68,0.00019726,2]
[330524624,1719558705511,-500.0,0.00019726,2]
[330524625,1719558705521,-500.0,0.00019726,2]
[330524626,1719558705531,-2736.27,0.00019726,2]
[330524627,1719558705540,-570.56,0.00019726,2]
[330524628,1719558705550,-2927.8,0.00019726,2]
[330524629,1719558705559,-1000.0,0.00019726,2]
[330524630,1719558705569,-500.0,0.00019726,2]
[330524631,1719558705578,-500.0,0.00019726,2]
[330524632,1719558705588,-500.0,0.00019726,2]
[330524633,1719558705598,-500.0,0.00019726,2]
[330524634,1719558705607,-500.0,0.00019726,2]
[330524635,1719558705618,-500.0,0.00019726,2]
[330524636,1719558705627,-500.0,0.00019726,2]
[330524637,1719558705637,-974.29,0.00019726,2]
[330524638,1719558705650,-600.04,0.00019726,2]
[330524639,1719558705660,-2645.45,0.00019726,2]
[330524640,1719558705670,-3716.76,0.00019726,2]
[330524641,1719558705679,-1332.34,0.00019726,2]
[330524642,1719558705688,-725.99,0.00019726,2]
[330524643,1719558705698,-500.0,0.00019726,2]
[330524644,1719558705708,-500.0,0.00019726,2]
[330524645,1719558705718,-500.0,0.00019726,2]
[330524646,1719558705727,-1869.56,0.00019726,2]
[330524647,1719558705737,-500.0,0.00019726,2]
[330524648,1719558705747,-500.0,0.00019726,2]
[330524649,1719558705756,-500.0,0.00019726,2]
[330524650,1719558705766,-4816.09,0.00019726,2]
[330524651,1719558705776,-500.0,0.00019726,2]
[330524652,1719558705785,-500.0,0.00019726,2]
[330524653,1719558705795,-2529.03,0.00019726,2]
[330524654,1719558705804,-2526.58,0.00019726,2]
[330524655,1719558705814,-500.0,0.00019726,2]
[330524656,1719558705823,-1689.43,0.00019726,2]
[330524657,1719558705833,-568.89,0.00019726,2]
[330524658,1719558705842,-500.0,0.00019726,2]
[330524659,1719558705852,-2532.97,0.00019726,2]
[330524660,1719558705861,-500.0,0.00019726,2]
[330524661,1719558705871,-533.2,0.00019726,2]
[330524662,1719558705880,-500.0,0.00019726,2]
[330524663,1719558705892,-524.64,0.00019726,2]
[330524664,1719558705901,-814.89,0.00019726,2]
[330524665,1719558705911,-500.0,0.00019726,2]
[330524666,1719558705921,-500.0,0.00019726,2]
[330524667,1719558705931,-910.4,0.00019726,2]
[330524668,1719558705940,-1069.34,0.00019726,2]
[330524669,1719558705950,-1485.58,0.00019726,2]
[330524670,1719558705959,-1244.54,0.00019726,2]
[330524671,1719558705968,-500.0,0.00019726,2]
[330524672,1719558705978,-500.0,0.00019726,2]
[330524673,1719558705987,-4176.53,0.00019726,2]
[330524674,1719558705997,-13952.2,0.00019726,2]
[330524675,1719558706007,-500.0,0.00019726,2]
[330524676,1719558706016,-500.0,0.00019726,2]
[330524677,1719558706026,-500.0,0.00019726,2]
[330524678,1719558706036,-3103.27,0.00019726,2]
[330524679,1719558706046,-1756.63,0.00019726,2]
[330524680,1719558706056,-500.0,0.00019726,2]
[330524681,1719558706067,-633.69,0.00019726,2]
[330524682,1719558706077,-500.0,0.00019726,2]
[330524683,1719558706090,-500.0,0.00019726,2]
[330524684,1719558706099,-500.0,0.00019726,2]
[330524685,1719558706109,-1600.83,0.00019726,2]
[330524686,1719558706120,-993.18,0.00019726,2]
[330524687,1719558706130,-749.62,0.00019726,2]
[330524688,1719558706140,-601.89,0.00019726,2]
[330524689,1719558706152,-2146.7,0.00019726,2]
[330524690,1719558706162,-1061.29,0.00019726,2]
[330524691,1719558706176,-526.89685168,0.00019726,2]
[330524692,1719558706187,-3501.79,0.00019726,2]
[330524693,1719558706197,-1017.07,0.00019726,2]
[330524694,1719558706207,-500.0,0.00019726,2]
[330524695,1719558706217,-500.0,0.00019726,2]
[330524696,1719558706227,-500.0,0.00019726,2]
[330524697,1719558706237,-500.0,0.00019726,2]
[330524698,1719558706246,-500.0,0.00019726,2]
[330524699,1719558706256,-500.0,0.00019726,2]
[330524700,1719558706266,-500.0,0.00019726,2]
[330524701,1719558706276,-424.46432069,0.00019726,2]
[330524702,1719558706286,-3024.66,0.00019726,2]
[330524703,1719558706296,-10650.33,0.00019726,2]
[330524704,1719558706307,-198.36067986,0.00019726,2]
[330524705,1719558706316,-1017.08,0.00019726,2]
[330524706,1719558706326,-520.0,0.00019726,2]
[330524707,1719558706336,-794.12,0.00019726,2]
[330524708,1719558706347,-954.93,0.00019726,2]
[330524709,1719558706356,-554.46,0.00019726,2]
[330524710,1719558706366,-755.52,0.00019726,2]
[330524711,1719558706375,-500.0,0.00019726,2]
[330524712,1719558706385,-1734.14,0.00019726,2]
[330524713,1719558706395,-1216.25,0.00019726,2]
[330524714,1719558706405,-1243.61,0.00019726,2]
[330524715,1719558706414,-500.0,0.00019726,2]
[330524716,1719558706424,-500.0,0.00019726,2]
[330524717,1719558706433,-500.0,0.00019726,2]
[330524718,1719558706443,-578.3,0.00019726,2]
[330524719,1719558706452,-500.0,0.00019726,2]
[330524720,1719558706462,-500.0,0.00019726,2]
[330524721,1719558706471,-555.95,0.00019726,2]
[330524722,1719558706480,-500.0,0.00019726,2]
[330524723,1719558706490,-813.0,0.00019726,2]
[330524724,1719558706499,-500.0,0.00019726,2]
[330524725,1719558706508,-500.0,0.00019726,2]
[330524726,1719558706518,-590.8,0.00019726,2]
[330524727,1719558706528,-951.37,0.00019726,2]
[330524728,1719558706538,-500.0,0.00019726,2]
[330524729,1719558706547,-500.0,0.00019726,2]
[330524730,1719558706556,-4816.96,0.00019726,2]
[330524731,1719558706566,-908.75,0.00019726,2]
[330524732,1719558706575,-1092.13,0.00019726,2]
[330524733,1719558706585,-7506.09,0.00019726,2]
[330524734,1719558706595,-500.0,0.00019726,2]
[330524735,1719558706604,-3503.4,0.00019726,2]
[330524736,1719558706613,-5180.87,0.00019726,2]
[330524737,1719558706623,-835.47,0.00019726,2]
[330524738,1719558706632,-500.0,0.00019726,2]
[330524739,1719558706642,-500.0,0.00019726,2]
[330524740,1719558706651,-500.0,0.00019726,2]
[330524741,1719558706661,-14563.04,0.00019726,2]
[330524742,1719558706671,-500.0,0.00019726,2]
[330524743,1719558706682,-1615.02,0.00019726,2]
[330524744,1719558706692,-4444.55,0.00019726,2]
[330524745,1719558706703,-507.08,0.00019726,2]
[330524746,1719558706713,-769.23,0.00019726,2]
[330524747,1719558706723,-6064.42,0.00019726,2]
[330524748,1719558706732,-770.69,0.00019726,2]
[330524749,1719558706742,-154.06693327,0.00019726,2]
[330524750,1719558706751,-500.0,0.00019726,2]
[330524751,1719558706761,-3759.51,0.00019726,2]
[330524752,1719558706771,-500.0,0.00019726,2]
[330524753,1719558706782,-500.0,0.00019726,2]
[330524754,1719558706792,-1813.3,0.00019726,2]
[330524755,1719558706802,-583.1,0.00019726,2]
[330524756,1719558706813,-693.79,0.00019726,2]
[330524757,1719558706823,-1497.01,0.00019726,2]
[330524758,1719558706832,-313.32188022,0.00019726,2]
[330524759,1719558706842,-30399.77,0.00019726,2]
[330524760,1719558706851,-500.0,0.00019726,2]
[330524761,1719558706861,-500.0,0.00019726,2]
[330524762,1719558706870,-500.0,0.00019726,2]
[330524763,1719558706880,-2796.72,0.00019726,2]
[330524764,1719558706891,-500.0,0.00019726,2]
[330524765,1719558706901,-856.91,0.00019726,2]
[330524766,1719558706911,-1740.9,0.00019726,2]
[330524767,1719558706921,-301.90728137,0.00019726,2]
[330524768,1719558706932,-614.07,0.00019726,2]
[330524769,1719558706942,-4177.26,0.00019726,2]
[330524770,1719558706953,-3229.61,0.00019726,2]
[330524771,1719558706963,-632.39,0.00019726,2]
[330524772,1719558706972,-1210.69,0.00019726,2]
[330524773,1719558706982,-1257.33,0.00019726,2]
[330524774,1719558706992,-1162.49,0.00019726,2]
[330524775,1719558707002,-500.0,0.00019726,2]
[330524776,1719558707011,-565.24,0.00019726,2]
[330524777,1719558707021,-500.0,0.00019726,2]
[330524778,1719558707031,-2511.35,0.00019726,2]
[330524779,1719558707041,-1855.43,0.00019726,2]
[330524780,1719558707051,-500.0,0.00019726,2]
[330524781,1719558707061,-500.0,0.00019726,2]
[330524782,1719558707070,-274.77996624,0.00019726,2]
[330524783,1719558707080,-666.88,0.00019726,2]
[330524784,1719558707093,-1469.58,0.00019726,2]
[330524785,1719558707104,-1063.15,0.00019726,2]
[330524786,1719558707116,-4055.72,0.00019726,2]
[330524787,1719558707370,-532.31,0.00019726,2]
[330524788,1719558707381,-1507.76,0.00019726,2]
[330524789,1719558707392,-25767.36,0.00019726,2]
[330524790,1719558707403,-2043.65,0.00019726,2]
[330524791,1719558707414,-4765.75,0.00019726,2]
[330524792,1719558707424,-500.0,0.00019726,2]
[330524793,1719558707433,-1952.77,0.00019726,2]
[330524794,1719558707443,-59498.43,0.00019726,2]
[330524795,1719558707453,-9013.41,0.00019726,2]
[330524796,1719558707464,-11504.4,0.00019726,2]
[330524797,1719558707474,-500.0,0.00019726,2]
[330524798,1719558707483,-500.0,0.00019726,2]
[330524799,1719558707493,-773.13,0.00019726,2]
[330524800,1719558707502,-500.0,0.00019726,2]
[330524801,1719558707512,-10059.3,0.00019726,2]
[330524802,1719558707521,-64173.59,0.00019726,2]
[330524803,1719558707531,-500.0,0.00019726,2]
[330524804,1719558707540,-1370.76,0.00019726,2]
[330524805,1719558707549,-500.0,0.00019726,2]
[330524806,1719558707560,-500.0,0.00019726,2]
[330524807,1719558707570,-500.0,0.00019726,2]
[330524808,1719558707579,-500.0,0.00019726,2]
[330524809,1719558707589,-5446.0,0.00019726,2]
[330524810,1719558707598,-871.21,0.00019726,2]
[330524811,1719558707608,-500.0,0.00019726,2]
[330524812,1719558707617,-2967.26,0.00019726,2]
[330524813,1719558707627,-837.7,0.00019726,2]
[330524814,1719558707636,-1223.2,0.00019726,2]
[330524815,1719558707647,-500.0,0.00019726,2]
[330524816,1719558707656,-500.0,0.00019726,2]
[330524817,1719558707665,-521.74,0.00019726,2]
[330524818,1719558707675,-1235.17,0.00019726,2]
[330524819,1719558707684,-647.11,0.00019726,2]
[330524820,1719558707693,-1156.86,0.00019726,2]
[330524821,1719558707702,-1401.97,0.00019726,2]
[330524822,1719558707712,-626.75,0.00019726,2]
[330524823,1719558707722,-500.0,0.00019726,2]
[330524824,1719558707731,-632.43,0.00019726,2]
[330524825,1719558707741,-585.43,0.00019726,2]
[330524826,1719558707750,-1562.78,0.00019726,2]
[330524827,1719558707760,-4773.95,0.00019726,2]
[330524828,1719558707770,-500.0,0.00019726,2]
[330524829,1719558707779,-500.0,0.00019726,2]
[330524830,1719558707789,-4565.55,0.00019726,2]
[330524831,1719558707798,-8342.35,0.00019726,2]
[330524832,1719558707808,-2330.95,0.00019726,2]
[330524833,1719558707818,-500.0,0.00019726,2]
[330524834,1719558707828,-2482.63,0.00019726,2]
[330524835,1719558707837,-4110.55,0.00019726,2]
[330524836,1719558707846,-5710.96,0.00019726,2]
[330524837,1719558707855,-500.0,0.00019726,2]
[330524838,1719558707865,-554.3,0.00019726,2]
[330524839,1719558707874,-500.0,0.00019726,2]
[330524840,1719558707883,-500.0,0.00019726,2]
[330524841,1719558707895,-500.0,0.00019726,2]
[330524842,1719558707904,-1576.76,0.00019726,2]
[330524843,1719558707913,-500.0,0.00019726,2]
[330524844,1719558707923,-500.0,0.00019726,2]
[330524845,1719558707933,-1798.84,0.00019726,2]
[330524846,1719558707942,-500.0,0.00019726,2]
[330524847,1719558707952,-500.0,0.00019726,2]
[330524848,1719558707961,-500.0,0.00019726,2]
[330524849,1719558707971,-961.87,0.00019726,2]
[330524850,1719558707980,-2426.82,0.00019726,2]
[330524851,1719558707990,-500.0,0.00019726,2]
[330524852,1719558707999,-1027.55,0.00019726,2]
[330524853,1719558708008,-500.0,0.00019726,2]
[330524854,1719558708018,-3214.15,0.00019726,2]
[330524855,1719558708027,-500.0,0.00019726,2]
[330524856,1719558708037,-500.0,0.00019726,2]
[330524857,1719558708046,-500.0,0.00019726,2]
[330524858,1719558708056,-7308.4,0.00019726,2]
[330524859,1719558708065,-1134.36,0.00019726,2]
[330524860,1719558708075,-500.0,0.00019726,2]
[330524861,1719558708084,-3844.7,0.00019726,2]
[330524862,1719558708099,-960.99,0.00019726,2]
[330524863,1719558708108,-500.0,0.00019726,2]
[330524864,1719558708118,-1144.67,0.00019726,2]
[330524865,1719558708128,-682.19,0.00019726,2]
[330524866,1719558708137,-2247.78,0.00019726,2]
[330524867,1719558708150,-2501.73,0.00019726,2]
[330524868,1719558708163,-648.92,0.00019726,2]
[330524869,1719558708176,-4357.71,0.00019726,2]
[330524870,1719558708187,-1481.62,0.00019726,2]
[330524871,1719558708197,-500.0,0.00019726,2]
[330524872,1719558708207,-18452.9,0.00019726,2]
[330524873,1719558708216,-602.93,0.00019726,2]
[330524874,1719558708226,-500.0,0.00019726,2]
[330524875,1719558708235,-593.29,0.00019726,2]
[330524876,1719558708245,-500.0,0.00019726,2]
[330524877,1719558708255,-1580.53,0.00019726,2]
[330524878,1719558708265,-3842.24,0.00019726,2]
[330524879,1719558708275,-593.97465543,0.00019726,2]
[330524880,1719558708284,-882.06,0.00019726,2]
[330524881,1719558708293,-500.0,0.00019726,2]
[330524882,1719558708303,-22571.91,0.00019726,2]
[330524883,1719558708313,-500.0,0.00019726,2]
[330524884,1719558708322,-500.0,0.00019726,2]
[330524885,1719558708332,-752.88,0.00019726,2]
[330524886,1719558708341,-3435.9,0.00019726,2]
[330524887,1719558708351,-500.0,0.00019726,2]
[330524888,1719558708360,-500.0,0.00019726,2]
[330524889,1719558708369,-500.0,0.00019726,2]
[330524890,1719558708378,-5321.73,0.00019726,2]
[330524891,1719558708387,-541.68968403,0.00019726,2]
[330524892,1719558708401,-500.0,0.00019726,2]
[330524893,1719558708410,-649.05447156,0.00019726,2]
[330524894,1719558708420,-822.36,0.00019726,2]
[330524895,1719558708430,-500.0,0.00019726,2]
[330524896,1719558708439,-5607.81,0.00019726,2]
[330524897,1719558708450,-500.0,0.00019726,2]
[330524898,1719558708459,-6170.08,0.00019726,2]
[330524899,1719558708468,-2775.78,0.00019726,2]
[330524900,1719558708477,-500.0,0.00019726,2]
[330524901,1719558708487,-886.61,0.00019726,2]
[330524902,1719558708496,-872.26,0.00019726,2]
[330524903,1719558708506,-500.0,0.00019726,2]
[330524904,1719558708515,-1186.29,0.00019726,2]
[330524905,1719558708525,-4543.74,0.00019726,2]
[330524906,1719558708534,-500.0,0.00019726,2]
[330524907,1719558708544,-500.0,0.00019726,2]
[330524908,1719558708554,-569.29,0.00019726,2]
[330524909,1719558708563,-500.0,0.00019726,2]
[330524910,1719558708573,-1249.44,0.00019726,2]
[330524911,1719558708582,-500.0,0.00019726,2]
[330524912,1719558708592,-1376.59,0.00019726,2]
[330524913,1719558708602,-598.98,0.00019726,2]
[330524914,1719558708612,-903.74,0.00019726,2]
[330524915,1719558708622,-38914.23,0.00019726,2]
[330524916,1719558708632,-7628.99,0.00019726,2]
[330524917,1719558708645,-17630.11,0.00019726,2]
[330524918,1719558708656,-2500.0,0.00019726,3]
[330524919,1719558708665,-3362.22,0.00019726,2]
[330524920,1719558708675,-3717.26,0.00019726,2]
[330524921,1719558708685,-713.1,0.00019726,2]
[330524922,1719558708695,-500.0,0.00019726,2]
[330524923,1719558708704,-1142.69,0.00019726,2]
[330524924,1719558708714,-500.0,0.00019726,2]
[330524925,1719558708724,-1661.39,0.00019726,2]
[330524926,1719558708733,-1709.03,0.00019726,2]
[330524927,1719558708743,-600.42,0.00019726,2]
[330524928,1719558708752,-5549.99,0.00019726,2]
[330524929,1719558708762,-500.0,0.00019726,2]
[330524930,1719558708771,-960.62,0.00019726,2]
[330524931,1719558708780,-332.4989202,0.00019726,2]
[330524932,1719558708790,-500.0,0.00019726,2]
[330524933,1719558708799,-2313.76,0.00019726,2]
[330524934,1719558708809,-500.0,0.00019726,2]
[330524935,1719558708819,-10581.61,0.00019726,2]
[330524936,1719558708828,-500.0,0.00019726,2]
[330524937,1719558708838,-4005.8,0.00019726,2]
[330524938,1719558708848,-500.0,0.00019726,2]
[330524939,1719558708857,-500.0,0.00019726,2]
[330524940,1719558708867,-2674.14,0.00019726,2]
[330524941,1719558708876,-1474.25,0.00019726,2]
[330524942,1719558708886,-6603.51,0.00019726,2]
[330524943,1719558708897,-1795.69,0.00019726,2]
[330524944,1719558708907,-1561.16,0.00019726,2]
[330524945,1719558708916,-2302.94,0.00019726,2]
[330524946,1719558708925,-500.0,0.00019726,2]
[330524947,1719558708934,-510.71,0.00019726,2]
[330524948,1719558708944,-1854.88,0.00019726,2]
[330524949,1719558708953,-4497.7,0.00019726,2]
[330524950,1719558708963,-500.0,0.00019726,2]
[330524951,1719558708972,-612.08601322,0.00019726,2]
[330524952,1719558708982,-994.78,0.00019726,2]
[330524953,1719558708991,-4090.43,0.00019726,2]
[330524954,1719558709000,-2355.57,0.00019726,2]
[330524955,1719558709009,-681.44,0.00019726,2]
[330524956,1719558709019,-2778.54,0.00019726,2]
[330524957,1719558709028,-1541.61,0.00019726,2]
[330524958,1719558709037,-500.0,0.00019726,2]
[330524959,1719558709047,-2225.47,0.00019726,2]
[330524960,1719558709056,-500.0,0.00019726,2]
[330524961,1719558709068,-500.0,0.00019726,2]
[330524962,1719558709078,-772.04,0.00019726,2]
[330524963,1719558709092,-2967.11,0.00019726,2]
[330524964,1719558709102,-500.0,0.00019726,2]
[330524965,1719558709111,-500.0,0.00019726,2]
[330524966,1719558709133,-199.48073486,0.00019726,2]
[330524967,1719558709155,-2521.36,0.00019726,2]
[330524968,1719558709176,-1281.95,0.00019726,2]
[330524969,1719558709197,-676.28,0.00019726,2]